[Event "*** Titled Tuesday Blitz"]
[Site "Chess.com"]
[Date "2021.03.09"]
[Round "3"]
[White "malakismayil"]
[Black "NikolaN98"]
[Result "0-1"]
[WhiteElo "2285"]
[BlackElo "2516"]
[TimeControl "180+1"]
[EndTime "10:29:01 PST"]
[Termination "NikolaN98 won on time"]

1. e4 {[%clk 0:03:00.9]} 1... e6 {[%clk 0:02:58.1]} 2. d4 {[%clk 0:03:00.5]}
2... d5 {[%clk 0:02:58.3]} 3. Nd2 {[%clk 0:03:00.8]} 3... Nf6 {[%clk 0:02:58.5]}
4. e5 {[%clk 0:03:00.9]} 4... Nfd7 {[%clk 0:02:58.7]} 5. Bd3 {[%clk 0:03:01.4]}
5... c5 {[%clk 0:02:58.4]} 6. c3 {[%clk 0:03:01.6]} 6... Nc6 {[%clk 0:02:58.1]}
7. Ne2 {[%clk 0:03:00.8]} 7... cxd4 {[%clk 0:02:58]} 8. cxd4 {[%clk 0:03:00.5]}
8... f6 {[%clk 0:02:58.3]} 9. exf6 {[%clk 0:03:00.9]} 9... Nxf6 {[%clk
0:02:57.6]} 10. Nf3 {[%clk 0:03:01.3]} 10... Bd6 {[%clk 0:02:55.3]} 11. Bf4
{[%clk 0:02:57]} 11... Bxf4 {[%clk 0:02:54.4]} 12. Nxf4 {[%clk 0:02:57.9]} 12...
Qa5+ {[%clk 0:02:54.1]} 13. Qd2 {[%clk 0:02:56.5]} 13... Qxd2+ {[%clk
0:02:53.3]} 14. Kxd2 {[%clk 0:02:57.4]} 14... O-O {[%clk 0:02:53.2]} 15. g3
{[%clk 0:02:43.4]} 15... Ne4+ {[%clk 0:02:07.6]} 16. Ke3 {[%clk 0:01:45.9]}
16... g5 {[%clk 0:02:04.4]} 17. Ne2 {[%clk 0:01:43.3]} 17... Nxf2 {[%clk
0:01:46.6]} 18. Nxg5 {[%clk 0:01:10.1]} 18... Nxh1 {[%clk 0:01:41.1]} 19. Bxh7+
{[%clk 0:01:05.9]} 19... Kg7 {[%clk 0:01:31.9]} 20. Rxh1 {[%clk 0:01:06.8]}
20... e5 {[%clk 0:01:10.5]} 21. dxe5 {[%clk 0:01:02.3]} 21... Nxe5 {[%clk
0:01:09.7]} 22. Nf4 {[%clk 0:00:58.4]} 22... Ng4+ {[%clk 0:00:50.3]} 23. Kd4
{[%clk 0:00:47.1]} 23... Kh6 {[%clk 0:00:50.3]} 24. h4 {[%clk 0:00:44.6]} 24...
Bd7 {[%clk 0:00:47.3]} 25. Bd3 {[%clk 0:00:27]} 25... Nf2 {[%clk 0:00:44.6]} 26.
Re1 {[%clk 0:00:24.8]} 26... Nxd3 {[%clk 0:00:44.2]} 27. Kxd3 {[%clk 0:00:25.7]}
27... Bf5+ {[%clk 0:00:44.2]} 28. Kd4 {[%clk 0:00:22.7]} 28... Rac8 {[%clk
0:00:44]} 29. Nxd5 {[%clk 0:00:16.2]} 29... Rc2 {[%clk 0:00:40.9]} 30. Ne3
{[%clk 0:00:15.8]} 30... Rxb2 {[%clk 0:00:37.1]} 31. Nxf5+ {[%clk 0:00:14.3]}
31... Rxf5 {[%clk 0:00:38]} 32. Re6+ {[%clk 0:00:14.3]} 32... Kh5 {[%clk
0:00:36.1]} 33. Ke4 {[%clk 0:00:08.1]} 33... Ra5 {[%clk 0:00:31.7]} 34. Re7
{[%clk 0:00:04.7]} 34... Re2+ {[%clk 0:00:30.5]} 35. Kf3 {[%clk 0:00:03.3]}
35... Rxe7 {[%clk 0:00:29.4]} 0-1

[Event "*** Titled Tuesday Blitz"]
[Site "Chess.com"]
[Date "2021.03.09"]
[Round "3"]
[White "Korona_91"]
[Black "ShahMatKanal"]
[Result "0-1"]
[WhiteElo "2465"]
[BlackElo "2494"]
[TimeControl "180+1"]
[EndTime "10:29:04 PST"]
[Termination "ShahMatKanal won by resignation"]

1. e4 {[%clk 0:03:00.9]} 1... c6 {[%clk 0:03:00.3]} 2. d4 {[%clk 0:02:58.3]}
2... d5 {[%clk 0:03:00.8]} 3. e5 {[%clk 0:02:57.6]} 3... Bf5 {[%clk 0:03:00.9]}
4. Nd2 {[%clk 0:02:56.9]} 4... e6 {[%clk 0:02:57.3]} 5. Nb3 {[%clk 0:02:56]}
5... Nd7 {[%clk 0:02:55.8]} 6. h4 {[%clk 0:02:54.1]} 6... h5 {[%clk 0:02:53.3]}
7. Be2 {[%clk 0:02:50.4]} 7... g6 {[%clk 0:02:49]} 8. Bg5 {[%clk 0:02:46.8]}
8... Be7 {[%clk 0:02:48.7]} 9. Nf3 {[%clk 0:02:46.6]} 9... Rc8 {[%clk
0:02:42.6]} 10. Rc1 {[%clk 0:02:39.4]} 10... a6 {[%clk 0:02:27.1]} 11. O-O
{[%clk 0:02:30.6]} 11... Bxg5 {[%clk 0:02:21]} 12. Nxg5 {[%clk 0:02:30.1]} 12...
Nh6 {[%clk 0:02:11.8]} 13. Nc5 {[%clk 0:02:25.6]} 13... Nxc5 {[%clk 0:02:07.7]}
14. dxc5 {[%clk 0:02:26.5]} 14... f6 {[%clk 0:01:55.8]} 15. exf6 {[%clk
0:02:24.1]} 15... Qxf6 {[%clk 0:01:56.7]} 16. c4 {[%clk 0:02:17.4]} 16... O-O
{[%clk 0:01:51.9]} 17. Qb3 {[%clk 0:02:16.3]} 17... Rc7 {[%clk 0:01:49]} 18.
cxd5 {[%clk 0:02:12.1]} 18... exd5 {[%clk 0:01:47.9]} 19. Qg3 {[%clk 0:02:08.1]}
19... Re7 {[%clk 0:01:37.3]} 20. Bf3 {[%clk 0:02:02.4]} 20... Bg4 {[%clk
0:01:34.1]} 21. Rfe1 {[%clk 0:01:53.8]} 21... Rfe8 {[%clk 0:01:05.5]} 22. Rxe7
{[%clk 0:01:51.6]} 22... Rxe7 {[%clk 0:01:06.4]} 23. b4 {[%clk 0:01:37.1]} 23...
Kg7 {[%clk 0:00:59.9]} 24. Qd6 {[%clk 0:01:13.5]} 24... Bxf3 {[%clk 0:00:40.5]}
25. Qxf6+ {[%clk 0:01:09]} 25... Kxf6 {[%clk 0:00:41.4]} 26. Nxf3 {[%clk
0:01:09.7]} 26... Re2 {[%clk 0:00:40.3]} 27. Re1 {[%clk 0:00:53.4]} 27... Rxa2
{[%clk 0:00:31.1]} 28. Ng5 {[%clk 0:00:44.9]} 28... Ng4 {[%clk 0:00:22]} 29.
Re6+ {[%clk 0:00:43.7]} 29... Kf5 {[%clk 0:00:21.9]} 30. g3 {[%clk 0:00:42.6]}
30... Nxf2 {[%clk 0:00:19]} 31. Re7 {[%clk 0:00:41.5]} 31... Ne4 {[%clk
0:00:15.8]} 32. Rf7+ {[%clk 0:00:32.2]} 32... Kg4 {[%clk 0:00:15.7]} 33. Nxe4
{[%clk 0:00:20.2]} 33... dxe4 {[%clk 0:00:16.6]} 34. Rf4+ {[%clk 0:00:17.8]}
34... Kxg3 {[%clk 0:00:17]} 35. Rxe4 {[%clk 0:00:18.7]} 35... Ra1+ {[%clk
0:00:16.9]} 0-1

[Event "*** Titled Tuesday Blitz"]
[Site "Chess.com"]
[Date "2021.03.09"]
[Round "3"]
[White "aa175"]
[Black "Saxar85"]
[Result "1/2-1/2"]
[WhiteElo "2561"]
[BlackElo "2795"]
[TimeControl "180+1"]
[EndTime "10:29:05 PST"]
[Termination "Game drawn by repetition"]

1. d4 {[%clk 0:03:00.9]} 1... Nf6 {[%clk 0:02:58.8]} 2. Bf4 {[%clk 0:03:01.5]}
2... d5 {[%clk 0:02:56.6]} 3. e3 {[%clk 0:03:01.8]} 3... c5 {[%clk 0:02:52.3]}
4. Nf3 {[%clk 0:03:01.9]} 4... Nc6 {[%clk 0:02:50.9]} 5. Nbd2 {[%clk 0:03:00.6]}
5... Bg4 {[%clk 0:02:49.4]} 6. c3 {[%clk 0:03:00.3]} 6... e6 {[%clk 0:02:48.7]}
7. Qb3 {[%clk 0:02:57.6]} 7... Qc8 {[%clk 0:02:36.5]} 8. h3 {[%clk 0:02:56.6]}
8... Bxf3 {[%clk 0:02:34.7]} 9. Nxf3 {[%clk 0:02:56.6]} 9... Be7 {[%clk
0:02:33.7]} 10. Qd1 {[%clk 0:02:48.6]} 10... O-O {[%clk 0:02:30.6]} 11. Bd3
{[%clk 0:02:45.7]} 11... Qd7 {[%clk 0:02:26.3]} 12. O-O {[%clk 0:02:25.3]} 12...
Rfd8 {[%clk 0:02:20.1]} 13. Ne5 {[%clk 0:02:25.4]} 13... Nxe5 {[%clk 0:01:59.2]}
14. dxe5 {[%clk 0:02:26.3]} 14... Ne4 {[%clk 0:01:54.4]} 15. f3 {[%clk
0:02:26.7]} 15... c4 {[%clk 0:01:53.8]} 16. fxe4 {[%clk 0:02:20.9]} 16... cxd3
{[%clk 0:01:53.7]} 17. Qxd3 {[%clk 0:02:21.8]} 17... dxe4 {[%clk 0:01:47.5]} 18.
Qxe4 {[%clk 0:02:22.7]} 18... Qb5 {[%clk 0:01:47.3]} 19. Rf2 {[%clk 0:02:18.2]}
19... Rd7 {[%clk 0:01:41.7]} 20. Raf1 {[%clk 0:01:42.9]} 20... Rad8 {[%clk
0:01:38.3]} 21. Bg3 {[%clk 0:01:41.4]} 21... Bg5 {[%clk 0:01:12.3]} 22. h4
{[%clk 0:01:30.3]} 22... Bh6 {[%clk 0:01:11.7]} 23. Bf4 {[%clk 0:01:30.8]} 23...
Bxf4 {[%clk 0:01:05.6]} 24. exf4 {[%clk 0:01:31.7]} 24... g6 {[%clk 0:01:02.1]}
25. g4 {[%clk 0:01:21.8]} 25... Rd3 {[%clk 0:00:54.9]} 26. Kh2 {[%clk
0:01:10.1]} 26... Rd2 {[%clk 0:00:49.9]} 27. Qb1 {[%clk 0:00:55.8]} 27... Re2
{[%clk 0:00:38.1]} 28. Qc1 {[%clk 0:00:48.8]} 28... Rdd2 {[%clk 0:00:29]} 29.
Kg2 {[%clk 0:00:44.2]} 29... Rxb2 {[%clk 0:00:21.5]} 30. c4 {[%clk 0:00:37.1]}
30... Qc6+ {[%clk 0:00:20.9]} 31. Kg3 {[%clk 0:00:31.4]} 31... Qe4 {[%clk
0:00:20.7]} 32. Qd1 {[%clk 0:00:20.7]} 32... Rxf2 {[%clk 0:00:15.1]} 33. Qd8+
{[%clk 0:00:16.2]} 33... Kg7 {[%clk 0:00:15]} 34. Qf6+ {[%clk 0:00:16.6]} 34...
Kg8 {[%clk 0:00:15.3]} 35. Qd8+ {[%clk 0:00:14.2]} 35... Kg7 {[%clk 0:00:15.3]}
36. Qf6+ {[%clk 0:00:04.9]} 36... Kg8 {[%clk 0:00:15.1]} 37. Qd8+ {[%clk
0:00:04.9]} 1/2-1/2

[Event "*** Titled Tuesday Blitz"]
[Site "Chess.com"]
[Date "2021.03.09"]
[Round "3"]
[White "Grimlock_Glasgow"]
[Black "Nemsko"]
[Result "1-0"]
[WhiteElo "2512"]
[BlackElo "2276"]
[TimeControl "180+1"]
[EndTime "10:29:05 PST"]
[Termination "Grimlock_Glasgow won by checkmate"]

1. e4 {[%clk 0:03:00.9]} 1... c5 {[%clk 0:02:59.6]} 2. Nc3 {[%clk 0:02:56.3]}
2... d6 {[%clk 0:02:59.8]} 3. d4 {[%clk 0:02:54.7]} 3... cxd4 {[%clk 0:03:00.7]}
4. Qxd4 {[%clk 0:02:54.8]} 4... Nc6 {[%clk 0:02:59.8]} 5. Qd2 {[%clk 0:02:55.2]}
5... Nf6 {[%clk 0:02:59.7]} 6. b3 {[%clk 0:02:55.9]} 6... e6 {[%clk 0:02:59.2]}
7. Bb2 {[%clk 0:02:56.2]} 7... Be7 {[%clk 0:02:59.7]} 8. O-O-O {[%clk
0:02:56.5]} 8... O-O {[%clk 0:02:57.4]} 9. f4 {[%clk 0:02:56.1]} 9... a6 {[%clk
0:02:43]} 10. g4 {[%clk 0:02:50.5]} 10... Qc7 {[%clk 0:02:36.9]} 11. g5 {[%clk
0:02:49.2]} 11... Nd7 {[%clk 0:02:35.2]} 12. h4 {[%clk 0:02:35.4]} 12... b5
{[%clk 0:02:25.1]} 13. Bg2 {[%clk 0:02:31.7]} 13... Bb7 {[%clk 0:02:22.8]} 14.
Nge2 {[%clk 0:02:24.9]} 14... Qb6 {[%clk 0:02:13.8]} 15. h5 {[%clk 0:02:15.2]}
15... a5 {[%clk 0:02:02.6]} 16. g6 {[%clk 0:01:56.2]} 16... fxg6 {[%clk
0:01:58.7]} 17. hxg6 {[%clk 0:01:53.6]} 17... h6 {[%clk 0:01:57.6]} 18. Nd5
{[%clk 0:01:51.4]} 18... Qd8 {[%clk 0:01:43.2]} 19. Rxh6 {[%clk 0:00:39]} 19...
gxh6 {[%clk 0:01:38.9]} 20. Rh1 {[%clk 0:00:37.1]} 20... Nf6 {[%clk 0:01:13.1]}
21. f5 {[%clk 0:00:24.6]} 21... Nxd5 {[%clk 0:01:05.4]} 22. Rxh6 {[%clk
0:00:06.7]} 22... Nf6 {[%clk 0:00:24.5]} 23. Rh8+ {[%clk 0:00:04.8]} 23... Kxh8
{[%clk 0:00:24.6]} 24. Qh6+ {[%clk 0:00:05.2]} 24... Kg8 {[%clk 0:00:22.4]} 25.
Nf4 {[%clk 0:00:05.3]} 25... Ne5 {[%clk 0:00:15.2]} 26. Nxe6 {[%clk 0:00:04.8]}
26... Rf7 {[%clk 0:00:14.8]} 27. gxf7+ {[%clk 0:00:04.2]} 27... Kxf7 {[%clk
0:00:15.7]} 28. Bf3 {[%clk 0:00:03.6]} 28... Qg8 {[%clk 0:00:14.3]} 29. Bh5+
{[%clk 0:00:02.8]} 29... Nxh5 {[%clk 0:00:11.2]} 30. Qxh5+ {[%clk 0:00:03.7]}
30... Kf6 {[%clk 0:00:11.5]} 31. Bd4 {[%clk 0:00:02.3]} 31... Qg5+ {[%clk
0:00:11.3]} 32. Qxg5+ {[%clk 0:00:01.9]} 32... Kf7 {[%clk 0:00:11.9]} 33. Qh5+
{[%clk 0:00:02.6]} 33... Kg8 {[%clk 0:00:11.9]} 34. Bxe5 {[%clk 0:00:03.2]}
34... dxe5 {[%clk 0:00:12.2]} 35. Qg6+ {[%clk 0:00:03.8]} 35... Kh8 {[%clk
0:00:12.1]} 36. Qg7# {[%clk 0:00:04.7]} 1-0

[Event "*** Titled Tuesday Blitz"]
[Site "Chess.com"]
[Date "2021.03.09"]
[Round "3"]
[White "Fandorin779"]
[Black "Fraler15"]
[Result "1-0"]
[WhiteElo "2513"]
[BlackElo "2275"]
[TimeControl "180+1"]
[EndTime "10:29:13 PST"]
[Termination "Fandorin779 won by resignation"]

1. c4 {[%clk 0:03:00.9]} 1... e5 {[%clk 0:02:59.7]} 2. Nc3 {[%clk 0:03:00.7]}
2... Nf6 {[%clk 0:02:59.9]} 3. Nf3 {[%clk 0:03:01]} 3... Nc6 {[%clk 0:02:59]} 4.
e4 {[%clk 0:03:01.3]} 4... Bb4 {[%clk 0:02:58.4]} 5. d3 {[%clk 0:02:57.2]} 5...
d6 {[%clk 0:02:56.6]} 6. a3 {[%clk 0:02:57]} 6... Bxc3+ {[%clk 0:02:56.5]} 7.
bxc3 {[%clk 0:02:56.6]} 7... O-O {[%clk 0:02:56.5]} 8. g3 {[%clk 0:02:56.8]}
8... Be6 {[%clk 0:02:51.9]} 9. Bg2 {[%clk 0:02:56.6]} 9... a5 {[%clk 0:02:36]}
10. O-O {[%clk 0:02:56.1]} 10... Qd7 {[%clk 0:02:34.1]} 11. Ng5 {[%clk
0:02:55.9]} 11... Bg4 {[%clk 0:02:33.3]} 12. f3 {[%clk 0:02:42.6]} 12... Bh5
{[%clk 0:02:33]} 13. g4 {[%clk 0:02:42.9]} 13... Bg6 {[%clk 0:02:32.9]} 14. h4
{[%clk 0:02:42.4]} 14... h6 {[%clk 0:02:33.2]} 15. h5 {[%clk 0:02:38.9]} 15...
Bh7 {[%clk 0:02:22.2]} 16. Nxh7 {[%clk 0:02:38.6]} 16... Nxh7 {[%clk 0:02:23.1]}
17. Be3 {[%clk 0:02:36.7]} 17... Qe7 {[%clk 0:02:17.3]} 18. Qd2 {[%clk
0:02:35.1]} 18... Nd8 {[%clk 0:02:05.1]} 19. Rf2 {[%clk 0:02:27.4]} 19... Ne6
{[%clk 0:02:04.5]} 20. d4 {[%clk 0:02:27.4]} 20... b6 {[%clk 0:01:52]} 21. d5
{[%clk 0:02:22.1]} 21... Nc5 {[%clk 0:01:51.8]} 22. Raf1 {[%clk 0:02:15.6]}
22... Ng5 {[%clk 0:01:47.7]} 23. Bxc5 {[%clk 0:02:11.8]} 23... bxc5 {[%clk
0:01:46.7]} 24. f4 {[%clk 0:02:10.1]} 24... exf4 {[%clk 0:01:47.6]} 25. Rxf4
{[%clk 0:02:06.7]} 25... Rab8 {[%clk 0:01:47.1]} 26. Rf5 {[%clk 0:01:51.5]}
26... Rb3 {[%clk 0:01:45.8]} 27. Re1 {[%clk 0:01:47.1]} 27... Rfb8 {[%clk
0:01:44.9]} 28. e5 {[%clk 0:01:47]} 28... Rxa3 {[%clk 0:01:18.5]} 29. exd6
{[%clk 0:01:15.7]} 29... Qxd6 {[%clk 0:01:19.4]} 30. Rfe5 {[%clk 0:01:15.6]}
30... Qf6 {[%clk 0:01:08.2]} 31. Qc2 {[%clk 0:00:59.8]} 31... g6 {[%clk
0:00:54.9]} 32. hxg6 {[%clk 0:00:56.8]} 32... Qxg6 {[%clk 0:00:50.8]} 33. Qxg6+
{[%clk 0:00:38.8]} 33... fxg6 {[%clk 0:00:51.7]} 34. Re7 {[%clk 0:00:39.4]}
34... Rxc3 {[%clk 0:00:45.9]} 35. Rxc7 {[%clk 0:00:38.3]} 35... a4 {[%clk
0:00:24.6]} 36. d6 {[%clk 0:00:37.5]} 36... Rd3 {[%clk 0:00:17.3]} 37. d7 {[%clk
0:00:31.4]} 37... Rd8 {[%clk 0:00:16.6]} 38. Re8+ {[%clk 0:00:29.5]} 38... Kf7
{[%clk 0:00:05]} 39. Rxd8 {[%clk 0:00:29]} 39... Ke7 {[%clk 0:00:05.9]} 40. Re8+
{[%clk 0:00:28]} 40... Kf7 {[%clk 0:00:06.8]} 41. d8=Q+ {[%clk 0:00:27.8]} 1-0

[Event "*** Titled Tuesday Blitz"]
[Site "Chess.com"]
[Date "2021.03.09"]
[Round "3"]
[White "AlphaZ3r0"]
[Black "suyu28"]
[Result "0-1"]
[WhiteElo "2266"]
[BlackElo "2634"]
[TimeControl "180+1"]
[EndTime "10:29:13 PST"]
[Termination "suyu28 won on time"]

1. Nf3 {[%clk 0:02:57]} 1... f5 {[%clk 0:02:57]} 2. c4 {[%clk 0:02:54.6]} 2...
Nf6 {[%clk 0:02:57.1]} 3. g3 {[%clk 0:02:42.3]} 3... g6 {[%clk 0:02:56.6]} 4.
Bg2 {[%clk 0:02:42]} 4... Bg7 {[%clk 0:02:56.3]} 5. O-O {[%clk 0:02:42.5]} 5...
O-O {[%clk 0:02:56.4]} 6. d4 {[%clk 0:02:42.7]} 6... d6 {[%clk 0:02:56.1]} 7.
Nc3 {[%clk 0:02:42.3]} 7... c6 {[%clk 0:02:54.5]} 8. b3 {[%clk 0:02:36.5]} 8...
Qc7 {[%clk 0:02:54.1]} 9. Ba3 {[%clk 0:02:14.9]} 9... Qa5 {[%clk 0:02:46.7]} 10.
Qc1 {[%clk 0:01:45.4]} 10... Re8 {[%clk 0:02:41.6]} 11. b4 {[%clk 0:01:23]}
11... Qa6 {[%clk 0:02:40.1]} 12. b5 {[%clk 0:01:20.4]} 12... Qa5 {[%clk
0:02:39.6]} 13. Rb1 {[%clk 0:01:18.1]} 13... Be6 {[%clk 0:02:38.7]} 14. Bb4
{[%clk 0:01:12.9]} 14... Qc7 {[%clk 0:02:38.4]} 15. bxc6 {[%clk 0:01:10.5]}
15... bxc6 {[%clk 0:02:28.7]} 16. d5 {[%clk 0:01:00.1]} 16... Bd7 {[%clk
0:02:27.4]} 17. Rd1 {[%clk 0:00:51.5]} 17... c5 {[%clk 0:02:23.7]} 18. Ba3
{[%clk 0:00:50.1]} 18... Na6 {[%clk 0:02:24.3]} 19. Ng5 {[%clk 0:00:46.7]} 19...
Qa5 {[%clk 0:02:22.1]} 20. Ne6 {[%clk 0:00:45.8]} 20... Reb8 {[%clk 0:02:17.8]}
21. Rxb8+ {[%clk 0:00:34.3]} 21... Rxb8 {[%clk 0:02:17]} 22. e4 {[%clk
0:00:35.2]} 22... fxe4 {[%clk 0:01:40.6]} 23. Nxg7 {[%clk 0:00:34.1]} 23... Kxg7
{[%clk 0:01:36.3]} 24. Nxe4 {[%clk 0:00:34.6]} 24... Bf5 {[%clk 0:01:27.7]} 25.
Re1 {[%clk 0:00:29.1]} 25... Bxe4 {[%clk 0:01:21.2]} 26. Bxe4 {[%clk 0:00:30]}
26... Nb4 {[%clk 0:01:16.2]} 27. Bb1 {[%clk 0:00:23]} 27... Rb7 {[%clk
0:01:13.9]} 28. h4 {[%clk 0:00:19.9]} 28... Qd8 {[%clk 0:00:39.7]} 29. Bb2
{[%clk 0:00:18.8]} 29... Kg8 {[%clk 0:00:38]} 30. Qg5 {[%clk 0:00:18.6]} 30...
Qf8 {[%clk 0:00:37.1]} 31. h5 {[%clk 0:00:18.7]} 31... Nxh5 {[%clk 0:00:33.6]}
32. Bxg6 {[%clk 0:00:13.9]} 32... hxg6 {[%clk 0:00:33.7]} 33. Qxg6+ {[%clk
0:00:14.4]} 33... Ng7 {[%clk 0:00:34.6]} 34. Re4 {[%clk 0:00:11.4]} 34... Nd3
{[%clk 0:00:30]} 35. Re2 {[%clk 0:00:02.4]} 35... Nxb2 {[%clk 0:00:24.4]} 36. f4
{[%clk 0:00:01]} 36... Qf5 {[%clk 0:00:18.5]} 0-1

[Event "*** Titled Tuesday Blitz"]
[Site "Chess.com"]
[Date "2021.03.09"]
[Round "3"]
[White "vovachesss"]
[Black "poneis_malditos"]
[Result "1-0"]
[WhiteElo "2700"]
[BlackElo "2321"]
[TimeControl "180+1"]
[EndTime "10:29:15 PST"]
[Termination "vovachesss won by resignation"]

1. e4 {[%clk 0:03:00.9]} 1... c5 {[%clk 0:02:59.4]} 2. c3 {[%clk 0:02:55.1]}
2... d5 {[%clk 0:02:55.6]} 3. exd5 {[%clk 0:02:56]} 3... Qxd5 {[%clk 0:02:56.1]}
4. d4 {[%clk 0:02:50.7]} 4... e6 {[%clk 0:02:54.9]} 5. Nf3 {[%clk 0:02:50.6]}
5... Nf6 {[%clk 0:02:54.6]} 6. Bd3 {[%clk 0:02:46.9]} 6... Nc6 {[%clk
0:02:53.8]} 7. O-O {[%clk 0:02:46.4]} 7... Be7 {[%clk 0:02:51.9]} 8. h3 {[%clk
0:02:46.1]} 8... O-O {[%clk 0:02:50.1]} 9. Re1 {[%clk 0:02:45.2]} 9... b6 {[%clk
0:02:49.2]} 10. c4 {[%clk 0:02:38]} 10... Qd6 {[%clk 0:02:46.8]} 11. dxc5 {[%clk
0:02:37.8]} 11... bxc5 {[%clk 0:02:45.4]} 12. Nc3 {[%clk 0:02:38]} 12... Ba6
{[%clk 0:02:43.9]} 13. Qe2 {[%clk 0:02:34.5]} 13... Nd4 {[%clk 0:02:39.1]} 14.
Nxd4 {[%clk 0:02:33.8]} 14... cxd4 {[%clk 0:02:40]} 15. Ne4 {[%clk 0:02:33.7]}
15... Qc7 {[%clk 0:02:22.7]} 16. Bg5 {[%clk 0:02:19.3]} 16... Nxe4 {[%clk
0:02:08.4]} 17. Qxe4 {[%clk 0:02:18.5]} 17... g6 {[%clk 0:02:09]} 18. Bxe7
{[%clk 0:02:11.8]} 18... Qxe7 {[%clk 0:02:09.9]} 19. Qxd4 {[%clk 0:02:12.7]}
19... Rfd8 {[%clk 0:02:09.1]} 20. Qc3 {[%clk 0:02:13]} 20... Rac8 {[%clk
0:02:01.6]} 21. b3 {[%clk 0:02:12.8]} 21... Bb7 {[%clk 0:01:56.9]} 22. Be4
{[%clk 0:02:12.1]} 22... Bxe4 {[%clk 0:01:55.6]} 23. Rxe4 {[%clk 0:02:13]} 23...
Qd7 {[%clk 0:01:56]} 24. Rae1 {[%clk 0:02:12.4]} 24... Qd2 {[%clk 0:01:55.2]}
25. Qxd2 {[%clk 0:02:09]} 25... Rxd2 {[%clk 0:01:56.1]} 26. R4e2 {[%clk
0:02:09.9]} 26... Rcd8 {[%clk 0:01:56.5]} 27. f3 {[%clk 0:02:10]} 27... Kf8
{[%clk 0:01:56.1]} 28. Kf2 {[%clk 0:02:09.9]} 28... Ke7 {[%clk 0:01:56.2]} 29.
Rxd2 {[%clk 0:02:10.5]} 29... Rxd2+ {[%clk 0:01:56.4]} 30. Re2 {[%clk
0:02:11.4]} 30... Rd1 {[%clk 0:01:57]} 31. Rc2 {[%clk 0:02:11.3]} 31... Kd6
{[%clk 0:01:56]} 32. c5+ {[%clk 0:01:57.4]} 32... Kc6 {[%clk 0:01:55.6]} 33. b4
{[%clk 0:01:58.3]} 33... a6 {[%clk 0:01:53.3]} 34. a3 {[%clk 0:01:56.2]} 34...
Ra1 {[%clk 0:01:52.3]} 35. Rc3 {[%clk 0:01:56.3]} 35... Ra2+ {[%clk 0:01:52]}
36. Kg3 {[%clk 0:01:55.6]} 36... g5 {[%clk 0:01:51.5]} 37. Rd3 {[%clk
0:01:52.3]} 37... h5 {[%clk 0:01:48.1]} 38. Rd6+ {[%clk 0:01:51.5]} 38... Kb7
{[%clk 0:01:46.6]} 39. Rd7+ {[%clk 0:01:51.1]} 39... Kc6 {[%clk 0:01:46.8]} 40.
Rxf7 {[%clk 0:01:48.7]} 40... Rxa3 {[%clk 0:01:46.9]} 41. Rf6 {[%clk 0:01:47.2]}
41... Re3 {[%clk 0:01:46.1]} 42. Rg6 {[%clk 0:01:44.6]} 42... Kb5 {[%clk
0:01:43.3]} 43. Rxg5 {[%clk 0:01:43.9]} 43... Kxb4 {[%clk 0:01:43.8]} 44. Rxh5
{[%clk 0:01:43.8]} 44... a5 {[%clk 0:01:41.9]} 45. c6 {[%clk 0:01:42]} 45... Rc3
{[%clk 0:01:42.4]} 46. Rh8 {[%clk 0:01:33.9]} 46... Rxc6 {[%clk 0:01:41.4]} 47.
h4 {[%clk 0:01:34.8]} 47... Ra6 {[%clk 0:01:39.8]} 48. Rb8+ {[%clk 0:01:34.6]}
48... Kc3 {[%clk 0:01:39.4]} 49. h5 {[%clk 0:01:35.1]} 49... a4 {[%clk
0:01:39.4]} 50. h6 {[%clk 0:01:35.5]} 50... Ra7 {[%clk 0:01:38.4]} 51. Kf4
{[%clk 0:01:28.2]} 51... Kc2 {[%clk 0:01:36.1]} 52. Rc8+ {[%clk 0:01:27.4]}
52... Kb2 {[%clk 0:01:35.8]} 53. Rh8 {[%clk 0:01:20.4]} 53... a3 {[%clk
0:01:34.6]} 54. h7 {[%clk 0:01:21]} 54... a2 {[%clk 0:01:09.3]} 55. Rb8+ {[%clk
0:01:20.2]} 55... Kc2 {[%clk 0:01:09.9]} 56. h8=Q {[%clk 0:01:17.6]} 56... a1=Q
{[%clk 0:01:08.5]} 57. Qxa1 {[%clk 0:01:09.2]} 57... Rxa1 {[%clk 0:01:09.4]} 58.
Rd8 {[%clk 0:01:09.2]} 58... Ra5 {[%clk 0:01:06.3]} 59. g4 {[%clk 0:01:08.6]}
59... Kc3 {[%clk 0:01:01.4]} 60. g5 {[%clk 0:01:08.4]} 60... Rf5+ {[%clk
0:01:00.5]} 61. Kg4 {[%clk 0:01:09.1]} 61... Rf7 {[%clk 0:00:43.4]} 62. g6
{[%clk 0:01:08.2]} 62... Rf6 {[%clk 0:00:43.8]} 63. Kg5 {[%clk 0:00:51.5]} 63...
Rxf3 {[%clk 0:00:43.5]} 64. g7 {[%clk 0:00:51.6]} 64... e5 {[%clk 0:00:38.3]}
65. g8=Q {[%clk 0:00:51.6]} 65... Rg3+ {[%clk 0:00:38.2]} 66. Kf5 {[%clk
0:00:52.2]} 66... Rxg8 {[%clk 0:00:38.6]} 67. Rxg8 {[%clk 0:00:53.1]} 1-0